[Event "Superbet Blitz Poland 2023"]
[Site "Warsaw"]
[Date "2023.05.24"]
[Round "2"]
[White "Shevchenko, Kirill"]
[Black "Aronian, Levon"]
[Result "0-1"]
[ECO "C65"]
[WhiteElo "2684"]
[BlackElo "2745"]
[Annotator "TA"]
[PlyCount "98"]
[EventDate "2023.05.24"]
[EventType "tourn"]
[EventCountry "POL"]
[SourceTitle "playchess.com"]
[Source "ChessBase"]
[SourceQuality "1"]
[TimeControl "300+2"]

{[%evp 9,98,21,16,12,10,10,14,11,8,1,8,0,0,0,0,0,4,-23,0,-13,0,-8,-8,-14,10,-30,-36,-88,-68,-73,-69,-125,-131,-129,-129,-261,-173,-187,-177,-168,-165,-144,-145,-158,-141,-130,-115,-115,-115,-108,-97,-133,-136,-123,-131,-132,-129,-128,-103,-180,-166,-159,-156,-218,-194,-203,-188,-277,-271,-260,-203,-196,-197,-195,-141,-203,-181,-173,0,0,0,0,0,0,0,0,0,-1232,-1043,-877,-839]} 1. e4 {[%emt 0:00:02]} e5 {[%emt 0:00:02]} 2. Nf3 {[%emt 0:00:02]} Nc6 {[%emt 0:00:01]} 3. Bb5 {[%emt 0:00:01]} Nf6 {[%emt 0:00:03]} 4. d3 {[%emt 0:00:02]} Bc5 {[%emt 0:00:02]} 5. Bxc6 {[%emt 0:00:03]} dxc6 {[%emt 0:00:02]} 6. O-O {[%emt 0:00:08] C65: Ruy Lopez: Berlin Defence (3...Nf6), unusual lines and 4 0-0 Bc5.} Bg4 {[%emt 0:00:05]} 7. h3 {[%emt 0:00:09]} Bh5 {[%emt 0:00:02] 7...Bxf3 is not played anymore.} 8. Nbd2 {[%emt 0:00:16] The position is equal.} Nd7 {[%emt 0:00:12] [#]} 9. c3 $146 {[%emt 0:00:35]} ({Predecessor:} 9. Nc4 f6 10. Rb1 a5 11. Bd2 b6 12. Be3 Be7 13. b3 Nc5 14. a4 Ne6 15. Qe2 {0-1 Firouzja,A (2728)-Carlsen,M (2863) Saint Louis Blitz 2020 (7)}) 9... O-O {[%emt 0:00:17]} 10. b4 {[%emt 0:00:13]} Bd6 {[%emt 0:00:20]} 11. Nc4 {[%emt 0:00:02]} (11. g4 $5 Bg6 $8 12. Nc4 $11) 11... f6 {[%emt 0:00:16]} 12. a4 {[%emt 0:00:18]} c5 {[%emt 0:00:16]} 13. Rb1 {[%emt 0:00:55]} (13. d4 {with more complications.} exd4 14. cxd4 cxb4 15. Nxd6 cxd6 16. Qb3+) 13... b6 {[%emt 0:00:18]} 14. Be3 {[%emt 0:00:13]} Kh8 {[%emt 0:00:08]} 15. Qe2 {[%emt 0:00:10]} cxb4 {[%emt 0:00:19]} 16. cxb4 {[%emt 0:00:02]} Qe7 {[%emt 0:00:03]} 17. Bd2 {[%emt 0:00:09]} Rfd8 {[%emt 0:00:23]} 18. Ne3 {[%emt 0:00:07]} (18. Rfd1 $15) 18... Nf8 $17 {[%emt 0:00:10]} 19. Nf5 {[%emt 0:00:10]} Qd7 {[%emt 0:00:20]} 20. Qe3 {[%emt 0:00:31] [#]} ({White should try} 20. g4 $15 Bf7 21. d4) 20... Ne6 $1 {[%emt 0:00:23]} 21. Bc3 {[%emt 0:00:58]} c5 {[%emt 0:00:56]} 22. Nd2 {[%emt 0:00:16]} (22. Nxd6 $17 Qxd6 23. Rfd1) 22... cxb4 {[%emt 0:00:18]} ({Inferior is} 22... Qxa4 23. Nxd6 Rxd6 24. bxc5 bxc5 25. Nc4 $17) 23. Bxb4 {[%emt 0:00:01]} Bxb4 {[%emt 0:00:03]} 24. Rxb4 {[%emt 0:00:01]} Qxd3 {[%emt 0:00:02]} 25. Qxd3 {[%emt 0:00:02]} Rxd3 {[%emt 0:00:01]} 26. Nc4 {[%emt 0:00:01]} Nd4 {[%emt 0:00:17] And now ...Nxf5 would win.} 27. a5 {[%emt 0:00:02]} Nxf5 {[%emt 0:00:24]} 28. exf5 {[%emt 0:00:02]} bxa5 {[%emt 0:00:00]} 29. Nxa5 {[%emt 0:00:02]} Be8 {[%emt 0:00:07]} 30. Rfb1 {[%emt 0:00:02]} h5 {[%emt 0:00:04]} 31. Rb7 {[%emt 0:00:06]} Rd7 {[%emt 0:00:04]} 32. Rb8 {[%emt 0:00:03]} Rd8 {[%emt 0:00:00]} 33. R8b7 {[%emt 0:00:00]} a6 {[%emt 0:00:04]} 34. Kh2 {[%emt 0:00:03]} (34. R1b6 $17) 34... Kh7 {[%emt 0:00:01]} 35. R1b6 {[%emt 0:00:04]} Rd7 {[%emt 0:00:03]} 36. Rb8 {[%emt 0:00:08]} (36. g4 $17) 36... Rxb8 $19 {[%emt 0:00:02]} 37. Rxb8 {[%emt 0:00:01][%mdl 4096] Endgame KRB-KRN} Bf7 {[%emt 0:00:01]} 38. Ra8 {[%emt 0:00:06]} (38. Rb2 {is a better defense.}) 38... Rd2 {[%emt 0:00:03]} 39. Kg3 {[%emt 0:00:01]} h4+ {[%emt 0:00:01][%mdl 64] Deflection} 40. Kxh4 {[%emt 0:00:02]} Rxf2 {[%emt 0:00:01] Strongly threatening ...e4.} 41. g4 {[%emt 0:00:08]} Bd5 {[%emt 0:00:02] Wards off Nc6} (41... e4 $19 42. Rxa6 e3) 42. Rxa6 {[%emt 0:00:03]} (42. Rd8 $17 {was necessary.} Be4 43. Re8) 42... Ra2 {[%emt 0:00:00]} 43. Ra7 {[%emt 0:00:01][%cal Oa5c6]} e4 $2 {[%emt 0:00:08]} (43... Ra4 $19 {Threatens to win with ...e4.} 44. Kg3 Kh6) 44. Nc6 $1 $11 {[%emt 0:00:01][%mdl 64] Deflection} Rd2 {[%emt 0:00:01]} 45. Ne7 {[%emt 0:00:01]} Bf7 {[%emt 0:00:03]} 46. Ra4 {[%emt 0:00:05]} e3 {[%emt 0:00:02]} 47. Re4 {[%emt 0:00:01]} e2 {[%emt 0:00:02][%cal Of7c4] aiming for ...Bc4!} 48. Kg3 $2 {[%emt 0:00:04][%mdl 8192] [#]} (48. Ng6 $11) 48... Bc4 $1 $19 {[%emt 0:00:01][%cal Od2d4][%mdl 576] ...Rd4! would be deadly. Promotion} 49. Ng6 {[%emt 0:00:02] Prevents Rd4} (49. Kf2 Rd1) 49... Rd1 {[%emt 0:00:01] Weighted Error Value: White=0.30/Black=0.12 (very precise)} 0-1

[Event "Superbet Blitz Poland 2023"]
[Site "Warsaw"]
[Date "2023.05.24"]
[Round "3"]
[White "Carlsen, Magnus"]
[Black "Deac, Bogdan-Daniel"]
[Result "1/2-1/2"]
[ECO "C42"]
[WhiteElo "2853"]
[BlackElo "2700"]
[Annotator "TA"]
[PlyCount "93"]
[EventDate "2023.05.24"]
[EventType "tourn"]
[EventCountry "POL"]
[SourceTitle "playchess.com"]
[Source "ChessBase"]
[SourceQuality "1"]
[TimeControl "300+2"]

{[%evp 18,92,19,22,16,14,6,0,16,16,16,7,13,10,9,10,12,12,12,-12,-11,-51,-56,-79,-88,-105,-113,-119,-34,-30,0,0,0,-8,-10,-10,-10,-6,0,0,0,-9,0,0,0,0,0,0,0,0,0,0,0,0,0,0,0,0,0,0,0,0,0,0,0,0,0,0,0,0,0,0,0,0,0,0,0]} 1. e4 {[%emt 0:00:02] McShane,Luke} e5 {[%emt 0:00:01]} 2. Nf3 {[%emt 0:00:01]} Nf6 {[%emt 0:00:02]} 3. Nxe5 {[%emt 0:00:06]} d6 {[%emt 0:00:01]} 4. Nf3 {[%emt 0:00:02]} Nxe4 {[%emt 0:00:01]} 5. d4 {[%emt 0:00:02]} d5 {[%emt 0:00:01]} 6. Bd3 {[%emt 0:00:01]} Bd6 {[%emt 0:00:03]} 7. O-O {[%emt 0:00:07]} O-O {[%emt 0:00:02]} 8. c4 {[%emt 0:00:13]} c6 {[%emt 0:00:01]} 9. Re1 {[%emt 0:00:21]} Bf5 {[%emt 0:00:02]} 10. Qb3 {[%emt 0:00:12]} Qd7 {[%emt 0:00:08] C42: Petroff Defence: 3 Nxe5 and unusual White 3rd moves.} 11. cxd5 {[%emt 0:01:10] 11.c5 is becoming the main line.} (11. Nc3 {with more complications.} Nxc3 12. Bxf5 Qxf5 13. Qxb7 Qd7 14. Qxd7 Nxd7 15. c5) 11... cxd5 {[%emt 0:00:04]} 12. Nc3 {[%emt 0:00:01]} Nxc3 {[%emt 0:00:29]} 13. Bxf5 {[%emt 0:00:02]} Qxf5 {[%emt 0:00:01]} 14. bxc3 {[%emt 0:00:07]} b6 {[%emt 0:00:10]} 15. Qb5 {[%emt 0:00:10]} Qd7 $1 {[%emt 0:00:12]} (15... Nd7 $2 16. Qc6 $18) 16. a4 {[%emt 0:00:04]} (16. Qxd5 $2 {is the wrong capture.} Bxh2+ 17. Nxh2 Qxd5 $19) 16... Qxb5 {[%emt 0:01:12]} 17. axb5 {[%emt 0:00:02]} a5 {[%emt 0:00:01]} 18. Nh4 {[%emt 0:00:02] [#] aiming for Nf5.} g6 {[%emt 0:00:03] [#] Against Nf5} 19. Bh6 $146 {[%emt 0:00:23]} ({Predecessor:} 19. g4 Nd7 20. Ng2 Rfc8 21. Bf4 Bxf4 22. Nxf4 Rxc3 23. Nxd5 Rd3 24. Re7 Nf8 25. Nf6+ {½-½ Carlsen,M (2855)-Nepomniachtchi,I (2782) World-ch Carlsen-Nepomniachtchi 2021 (4)}) 19... Rc8 {[%emt 0:00:12]} 20. g4 {[%emt 0:00:14]} Nd7 {[%emt 0:00:14] Strongly threatening ...Nf6.} (20... Rxc3 $2 {is a self mate.} 21. Re8+) 21. Ng2 {[%emt 0:00:04][%cal Bh4g2,Bg2e3,Be3d5,Bd5c3][%mdl 32]} Rxc3 {[%emt 0:01:24]} 22. Ne3 {[%emt 0:00:02]} Bf8 {[%emt 0:00:32]} (22... Rd3 $17 23. Red1 Rxd1+ 24. Rxd1 Nf6) 23. Nxd5 $15 {[%emt 0:00:30]} Bxh6 {[%emt 0:00:30]} 24. Nxc3 {[%emt 0:00:01] [#] Black must now prevent Nd5. The position is equal.} Bd2 $1 {[%emt 0:00:01][%csl LRc3,LRe1]} 25. Na4 {[%emt 0:01:47] Re2 is the strong threat.} Bxe1 {[%emt 0:00:03]} 26. Rxe1 $11 {[%emt 0:00:01][%mdl 4096] Endgame KRN-KRN} Rc8 {[%emt 0:00:07] And now ...Rc4 would win.} 27. Re7 {[%emt 0:00:02]} Rc4 {[%emt 0:00:01]} 28. Rxd7 {[%emt 0:00:01]} Rxa4 {[%emt 0:00:01] KR-KR} 29. Rd6 {[%emt 0:00:04]} Rb4 {[%emt 0:00:03]} 30. Rxb6 {[%emt 0:00:01]} Rxd4 {[%emt 0:00:01]} 31. h3 {[%emt 0:00:02]} Rb4 {[%emt 0:00:03]} 32. Rb8+ {[%emt 0:00:01]} Kg7 {[%emt 0:00:01]} 33. b6 {[%emt 0:00:01]} a4 {[%emt 0:00:01]} 34. Ra8 {[%emt 0:00:01]} Rxb6 {[%emt 0:00:02]} 35. Rxa4 {[%emt 0:00:01]} Rb5 {[%emt 0:00:01]} 36. Kg2 {[%emt 0:00:02]} h5 {[%emt 0:00:01]} 37. Kg3 {[%emt 0:00:03]} hxg4 {[%emt 0:00:01]} 38. hxg4 {[%emt 0:00:01]} g5 {[%emt 0:00:01]} 39. f4 {[%emt 0:00:03]} Rb3+ {[%emt 0:00:02]} 40. Kf2 {[%emt 0:00:01]} gxf4 {[%emt 0:00:02]} 41. Rxf4 {[%emt 0:00:01]} f6 {[%emt 0:00:01]} 42. Rf3 {[%emt 0:00:02]} Rxf3+ {[%emt 0:00:02]} 43. Kxf3 {[%emt 0:00:01]} Kg6 {[%emt 0:00:01]} 44. Kf4 {[%emt 0:00:01]} Kg7 {[%emt 0:00:01]} 45. g5 {[%emt 0:00:01]} Kg6 {[%emt 0:00:01]} 46. gxf6 {[%emt 0:00:02]} Kxf6 {[%emt 0:00:02]} 47. Ke4 {[%emt 0:00:02] Weighted Error Value: White=0.04 (flawless) /Black=0.07 (flawless)} 1/2-1/2

[Event "Superbet Blitz Poland 2023"]
[Site "Warsaw"]
[Date "2023.05.24"]
[Round "3"]
[White "Giri, Anish"]
[Black "Vachier-Lagrave, Maxime"]
[Result "0-1"]
[ECO "A20"]
[WhiteElo "2768"]
[BlackElo "2742"]
[Annotator "TA"]
[PlyCount "66"]
[EventDate "2023.05.24"]
[EventType "tourn"]
[EventCountry "POL"]
[SourceTitle "playchess.com"]
[Source "ChessBase"]
[SourceQuality "1"]
[TimeControl "300+2"]

{[%evp 9,66,4,12,5,22,10,18,0,0,0,3,0,45,41,79,54,94,83,139,145,133,126,210,227,195,193,268,218,633,623,683,553,672,521,597,568,653,651,624,80,117,0,0,0,0,0,0,0,0,0,0,-29982,-29983,-29980,-29980,-29986,-29987,-29994,-29995]} 1. c4 {[%emt 0:00:00]} e5 {[%emt 0:00:01]} 2. g3 {[%emt 0:00:01]} c6 {[%emt 0:00:02]} 3. Nf3 {[%emt 0:00:05]} e4 {[%emt 0:00:02]} 4. Nd4 {[%emt 0:00:00]} d5 {[%emt 0:00:01]} 5. cxd5 {[%emt 0:00:02]} Qxd5 {[%emt 0:00:02]} 6. Nc2 {[%emt 0:00:01][%cal Bd4c2,Bc2e1,Be1f3,Bf3h4][%mdl 32] A20: English Opening: 1...e5.} Nf6 {[%emt 0:00:01]} 7. Nc3 {[%emt 0:00:00]} Qe5 {[%emt 0:00:02]} 8. Bg2 {[%emt 0:00:02] The position is equal.} Na6 {[%emt 0:00:04]} 9. O-O {[%emt 0:00:02]} Be7 {[%emt 0:00:07]} 10. Ne1 $5 {[%emt 0:00:02][%mdl 4] [#] Exploring less charted territory.} h5 $1 $146 {[%emt 0:00:02][%mdl 8] A top novelty.} ({Predecessor:} 10... O-O 11. d4 exd3 12. Nxd3 Qh5 13. e4 Rd8 14. Qxh5 Nxh5 15. Rd1 Be6 16. Be3 Nf6 {½-½ Yakubboev,N (2656)-Najer,E (2676) Poikovsky Karpov 21st 2022 (5)}) 11. d4 {[%emt 0:00:05]} Qf5 {[%emt 0:00:09]} 12. f3 {[%emt 0:00:04][%cal Rf3e4]} exf3 {[%emt 0:00:03]} 13. Nxf3 {[%emt 0:00:02][%cal Oe2e4]} (13. Rxf3 Qa5 $11) 13... h4 {[%emt 0:00:12]} 14. Nxh4 $16 {[%emt 0:00:23]} Qh5 {[%emt 0:00:02]} 15. e4 {[%emt 0:00:05]} Ng4 {[%emt 0:00:11]} (15... Qxd1 $16 16. Rxd1 (16. Nxd1 Nb4 $14) 16... Bg4) 16. h3 $18 {[%emt 0:00:08] Nf5 is the strong threat.} Bxh4 {[%emt 0:00:03]} 17. gxh4 {[%emt 0:00:02]} (17. hxg4 $2 Bxg4 18. Rf4 Bxd1 $19) 17... Qxh4 {[%emt 0:00:21]} (17... Nf6 $142 18. Bg5 Qxd1 19. Raxd1 Nh7) 18. Qf3 {[%emt 0:00:43]} (18. hxg4 Bxg4 19. Rf3 Nb4 $16) 18... Nh6 {[%emt 0:00:24]} (18... Nf6) 19. Bxh6 {[%emt 0:00:06]} Qxh6 {[%emt 0:00:01]} 20. Qxf7+ {[%emt 0:00:02]} Kd8 {[%emt 0:00:01]} 21. Rf3 {[%emt 0:00:12] Hoping for d5.} Bd7 {[%emt 0:00:29]} 22. d5 {[%emt 0:00:02]} Kc7 {[%emt 0:00:05][%cal Oa8f8]} 23. dxc6 {[%emt 0:00:12]} bxc6 {[%emt 0:00:01][%cal Oa8f8] [#]} 24. Nd5+ $2 {[%emt 0:00:32]} cxd5 $16 {[%emt 0:00:02]} 25. Rc3+ {[%emt 0:00:00]} (25. Qxd5 $16 {Black must now prevent Rc3+.} Rad8 26. Qc4+ (26. Rc3+ Bc6 $11) 26... Qc6 27. Qd4) 25... Kd8 $11 {[%emt 0:00:07][%cal Bc7d8,Bd8e7,Be7f7][%mdl 32] Strongly threatening ...Rc8.} 26. Qxd5 {[%emt 0:00:03]} Rc8 {[%emt 0:00:35] Threatens to win with ...Rxc3.} 27. Rd1 {[%emt 0:00:04][%csl Gd1][%cal Rd5d7]} Nb8 {[%emt 0:00:04] And now ...Rxc3 would win.} 28. Rb3 $36 {[%emt 0:00:10][%mdl 2048] White has the initiative.} ({Much weaker is} 28. Rxc8+ Kxc8 29. Qc5+ Qc6 30. Qxa7 Rh6 $15) 28... Ke7 {[%emt 0:00:25]} 29. Qe5+ {[%emt 0:01:29]} Kf7 {[%emt 0:00:01] ...Rhe8 would be deadly.} 30. Rxb8 $2 {[%emt 0:00:07][%mdl 8192] [#]} Qe3+ $1 {[%emt 0:00:07] Black mates.} 31. Kf1 {[#]} Rhf8 $1 {[%emt 0:00:12]} 32. Rxc8 {[%emt 0:01:15]} Bxc8 {[%emt 0:00:02]} 33. Qd6 {[%emt 0:00:03] [#]} Ba6+ $1 {[%emt 0:00:06][%mdl 512] What a bad dream for White. Magnificent play by Vachier-Lagrave!   Weighted Error Value: White=0.63/Black=0.40} 0-1

[Event "Superbet Blitz Poland 2023"]
[Site "Warsaw"]
[Date "2023.05.24"]
[Round "3"]
[White "Aronian, Levon"]
[Black "Duda, Jan-Krzysztof"]
[Result "1-0"]
[ECO "C27"]
[WhiteElo "2745"]
[BlackElo "2724"]
[Annotator "TA"]
[PlyCount "93"]
[EventDate "2023.05.24"]
[EventType "tourn"]
[EventCountry "POL"]
[SourceTitle "playchess.com"]
[Source "ChessBase"]
[SourceQuality "1"]
[TimeControl "300+2"]

{[%evp 9,93,0,-4,-29,-13,-28,-30,-20,0,0,0,0,10,0,0,0,0,0,0,2,31,0,32,37,0,25,17,0,0,0,111,0,13,18,121,111,216,195,191,0,5,0,0,-533,0,0,249,14,11,13,60,46,92,63,103,112,170,51,54,22,52,48,48,47,64,62,47,14,14,7,83,18,131,0,0,0,0,0,206,206,200,187,157,157,182,177]} 1. e4 {[%emt 0:00:02]} e5 {[%emt 0:00:01]} 2. Bc4 {[%emt 0:00:04]} Nf6 {[%emt 0:00:01]} 3. Nc3 {[%emt 0:00:01]} Nxe4 {[%emt 0:00:13]} 4. Qh5 {[%emt 0:00:02]} Nd6 {[%emt 0:00:01]} 5. Bb3 {[%emt 0:00:02]} Be7 $1 {[%emt 0:00:02]} 6. f4 {[%emt 0:00:01][%mdl 64] Deflection. C27: Vienna Game: 2...Nf6 3 Bc4 Nxe4.} exf4 {[%emt 0:00:30]} 7. d4 {[%emt 0:00:06]} O-O {[%emt 0:00:03] [#]} (7... Nc6 {simplifies} 8. Nf3 g6 9. Qh6 Na5) 8. Nf3 $146 {[%emt 0:00:13] Black has an edge.} ({Predecessor:} 8. Bxf4 Nc6 9. Nge2 Bf6 10. O-O-O g6 11. Qf3 Nf5 12. Nb5 d6 13. g4 a6 14. gxf5 axb5 15. fxg6 hxg6 {0-1 Golizadeh,A (2455)-Debray,C (2365) Titled Tuesday intern op 25th Jan blitz 2022 (3)}) 8... Nc6 {[%emt 0:00:55]} 9. Bxf4 {[%emt 0:00:19]} g6 {[%emt 0:00:03]} 10. Qh3 {[%emt 0:00:11]} Nf5 {[%emt 0:00:27]} 11. O-O-O {[%emt 0:00:36]} d6 {[%emt 0:00:53]} 12. g4 {[%emt 0:00:05]} Ng7 {[%emt 0:00:01]} 13. Bh6 {[%emt 0:00:04]} Na5 {[%emt 0:00:14]} 14. Nd5 $1 {[%emt 0:00:05]} Nxb3+ {[%emt 0:00:03]} 15. axb3 {[%emt 0:00:01]} c6 {[%emt 0:00:54] Black is weak on the dark squares} (15... Qd7 $5 {[%cal Re7d8]}) 16. Nxe7+ {[%emt 0:00:36]} Qxe7 {[%emt 0:00:01]} 17. Rde1 {[%emt 0:00:39] Inhibits f5.} Qd7 {[%emt 0:00:01]} 18. Qh4 {[%emt 0:00:01][%mdl 1024] White wants to mate with Qf6. White has compensation.} (18. Bxg7 Kxg7 19. Rhg1 Re8 20. Rxe8 (20. Ng5 h6 $17) 20... Qxe8 $17) (18. Rhg1 $5 {[%cal Rh3h4]}) 18... f6 {[%emt 0:00:07]} 19. h3 {[%emt 0:00:10]} a5 {[%emt 0:00:02]} (19... Qd8 $11) 20. Rhf1 {[%emt 0:01:33] White has more active pieces.} (20. Re2 $16 {aiming for Rhe1.} b5 21. Rhe1) 20... a4 {[%emt 0:00:03]} 21. Nd2 {[%emt 0:00:12]} axb3 {[%emt 0:00:34]} (21... g5 $1 $11 22. Bxg5 axb3 23. Rxf6 Rxf6 24. Bxf6 Ra1+ 25. Nb1 bxc2 26. Kxc2 Ne6) 22. Rxf6 $16 {[%emt 0:00:01]} (22. Nxb3 Qf7 $15) 22... Ra1+ {[%emt 0:00:03]} (22... Re8 $16) 23. Nb1 $18 {[%emt 0:00:01] Intending Rxf8+ and mate.} Re8 {[%emt 0:00:05]} 24. cxb3 $2 {[%emt 0:00:11]} (24. Rxe8+ $2 Qxe8 25. Qf2 bxc2 26. Kxc2 Qe4+ 27. Kc3 Qe7 $19) (24. Rff1 $1 $18 {Hoping for Rxe8+.} b6 25. Qf6 (25. cxb3 Ra8 $14) (25. Rxe8+ Qxe8 26. cxb3 Ra7 $11) 25... Rxe1+ {[%mdl 64] Remove Defender} 26. Rxe1) 24... Qd8 $132 {[%emt 0:00:17][%mdl 2048] Black is not holding back} 25. Rxe8+ {[%emt 0:00:07]} Qxe8 {[%emt 0:00:02]} 26. Rxd6 $2 {[%emt 0:00:05][%mdl 8192]} (26. Rf1 $1 $11 {and White stays safe.} Ne6 27. Qf6) 26... Bd7 $2 {[%emt 0:00:05]} (26... Qe4 $19 27. Rd8+ Kf7 28. Rf8+ {[%mdl 64] Decoy} (28. Qf2+ $2 Bf5 $19) 28... Kxf8 29. Qd8+ Kf7 30. Qc7+ Qe7 31. Qxe7+ Kxe7 32. Bxg7 h5) 27. Kc2 $11 {[%emt 0:00:19] Threatens to win with Qf6.} ({Don't go for} 27. Bxg7 $2 Qe4 28. Qd8+ Be8 $19) 27... Qf7 {[%emt 0:00:12] [#]} (27... Nf5 $2 28. gxf5 Qe2+ 29. Kc3 (29. Nd2 {gets mated.} Bxf5+) 29... Rxb1 30. Rxd7 $18) (27... Qe4+ $11 {and Black is okay.} 28. Kc3 Qf3+ 29. Kc2 Qe4+ 30. Kc3 Qf3+ 31. Kc2 Qe4+) 28. Rf6 $2 {[%emt 0:00:07]} (28. Qd8+ $1 $18 Be8 29. Rf6) 28... Qe7 $1 {[%emt 0:00:01] Strongly threatening ...Qe4+.} 29. Nd2 {[%emt 0:00:02][%cal Bb1d2,Bd2e4,Be4d6][%mdl 32] Dodges Qe4+. And now Bxg7 would win.} Re1 {[%emt 0:00:03]} (29... Qe2 $2 30. Rd6 Nf5 31. Qd8+ (31. gxf5 {is a self mate.} Bxf5+) 31... Qe8 32. Rxd7 $18) (29... Be8 $11) 30. Qf2 {[%emt 0:00:03]} (30. Bg5 {keeps more tension.} Qe2 31. Qg3 Be8 32. Rf2) 30... Re6 {[%emt 0:00:01]} (30... Be6 $14) 31. Rxe6 {[%emt 0:00:01]} Nxe6 {[%emt 0:00:01]} 32. Ne4 {[%emt 0:00:01] Nf6+ would be deadly.} Qf7 {[%emt 0:00:03]} (32... Kh8 $16 33. Kc1 Be8) 33. Qxf7+ ({White should play} 33. Qf6 $18) 33... Kxf7 $18 {[%emt 0:00:01][%mdl 4096] Endgame KBN-KBN} 34. Nd6+ {[%emt 0:00:04]} Ke7 {[%emt 0:00:01]} 35. Nxb7 {[%emt 0:00:01]} Nxd4+ {[%emt 0:00:02]} 36. Kc3 {[%emt 0:00:01]} Ne2+ {[%emt 0:00:02]} 37. Kd3 {[%emt 0:00:05]} Ng1 {[%emt 0:00:02]} 38. Be3 {[%emt 0:00:03]} Nxh3 {[%emt 0:00:03]} 39. g5 {[%emt 0:00:00]} Bf5+ {[%emt 0:00:04] [#]} (39... Bc8 $11 {remains equal.} 40. Nc5 Bg4) 40. Kc4 {[%emt 0:00:02]} ({White should try} 40. Kd4 $1 $16) 40... Be6+ {[%emt 0:00:01]} (40... Bc8 $1 $11 41. Nc5 Kd6) 41. Kc3 {[%emt 0:00:01]} ({White must play} 41. Kc5 $16) 41... Bd5 $11 {[%emt 0:00:02]} 42. Nc5 {[%emt 0:00:02]} Kd6 {[%emt 0:00:01]} 43. Kd4 {[%emt 0:00:00]} Ke7 $2 {[%emt 0:00:03]} (43... Bh1 $11) 44. Ke5 $18 {[%emt 0:00:02] White is clearly better.} Bf3 {[%emt 0:00:02]} 45. b4 {[%emt 0:00:00]} Bg2 {[%emt 0:00:02]} 46. Nb3 {[%emt 0:00:01]} Bh1 {[%emt 0:00:06]} 47. Nd4 {[%emt 0:00:01] Weighted Error Value: White=0.43/Black=0.45} 1-0